Cogmind - Beta 15 @@@ ROGUE MODE // 2025.10.04 @ 16:51:29 Player: iromakkem Result: Destroyed by TI-MEX(R) with Subdweller Beam Cannon Performance ------------- Evolutions (0) 0 Regions Visited (1) 200 Robots Destroyed (27) 135 Value Destroyed (658) 658 Prototype IDs (2) 40 Alien Tech Used (0) 0 Bonus (0) 0 TOTAL SCORE: 1033 Bonus ------- None Cogmind --------- Core Integrity 0/250 Matter 300/300 Energy 171/250 System Corruption 0% Temperature Cool (51) Movement Walking (260) Ox2 Location -10/Materials Parts ------- > --- POWER (1) -------- Ion Engine > --- PROPULSION (2) --- Aluminum Leg Aluminum Leg > --- UTILITY (2) ------ High-capacity Storage Unit Sensor Array > --- WEAPON (2) ------- Medium Laser > --- INVENTORY (20) --- Ion Engine Aluminum Leg Aluminum Leg Aluminum Leg Aluminum Leg Aluminum Leg Aluminum Leg Heat Sink Improved Heat Sink Improved Heat Sink Signal Interpreter Hacking Suite Small Laser Small Laser Peak State ------------ > --- POWER ------------ Light Ion Engine > --- PROPULSION ------- Light Treads Light Treads > --- UTILITY ---------- Small Storage Unit Improved Terrain Scanner > --- WEAPON ----------- Small Laser Assault Rifle > --- INVENTORY -------- Ion Engine Aluminum Leg Aluminum Leg Wheel Light Assault Rifle [Rating: 9] Favorites ----------- Power Ion Engine Engine Ion Engine Propulsion Aluminum Leg Treads Light Treads Leg Aluminum Leg Utility Small Storage Unit Device Sensor Array Storage Small Storage Unit Weapon Assault Rifle Energy Gun Medium Laser Ballistic Gun Assault Rifle Build | -11 -10 ------- Run | Yrd Mat Slots Evolved . | . . Power . | . . Propulsion . | . . Utility . | . . Weapon . | . . Parts Attached 18 | 7 11 Power 4 | 1 3 Engine 4 | 1 3 Core . | . . Reactor . | . . Propulsion 5 | 2 3 Treads 2 | 2 . Leg 3 | . 3 Wheel . | . . Hover . | . . Flight . | . . Utility 4 | 2 2 Device 2 | 1 1 Storage 2 | 1 1 Processor . | . . Hackware . | . . Protection . | . . Artifact . | . . Weapon 5 | 2 3 Energy Gun 2 | 1 1 Energy Cannon . | . . Ballistic Gun 3 | 1 2 Ballistic Cannon . | . . Launcher . | . . Special Weapon . | . . Impact Weapon . | . . Slashing Weapon . | . . Piercing Weapon . | . . Special Melee Weapon . | . . Unidentified Prototypes . | . . Parts Lost 9 | . 9 Power 3 | . 3 Propulsion 2 | . 2 Utility 1 | . 1 Weapon 3 | . 3 Highest Loss Streak 5 | . 5 To Critical Strikes . | . . Average Backups 7 | 3 8 Power 1 | . 1 Propulsion 3 | 2 4 Utility 2 | . 2 Weapon . | . . Tool/Special . | . . Unused Backups 14 | . 14 Power 1 | . 1 Propulsion 7 | . 7 Utility 5 | . 5 Weapon 1 | . 1 Tool/Special . | . . Average Slot Usage (%) 98 | . 98 Engine 13 | . 13 Treads 12 | . 12 Leg 15 | . 15 Device 13 | . 13 Storage 14 | . 14 Energy Gun 10 | . 10 Ballistic Gun 17 | . 17 Peak Build Rating 9 | 9 9 Average Rating 8 | 6 8 On Entrance 4 | . 9 Naked Turns . | . . Heaviest Build 49 | 12 49 Greatest Support 40 | 40 40 Greatest Overweight (x) 2 | . 2 Average Overweight (x) . | . . Largest Inventory Capacity 20 | 8 20 Average Capacity 13 | 7 13 Most Carried 16 | 7 16 Average Carried 7 | 3 8 Final Capacity 20 | 8 20 Final Carried 14 | 7 14 Class Distribution -------------------- 100% | Mutant Dominant Class ---------------- Mutant | -10/Materials Resources | -11 -10 ----------- Run | Yrd Mat Matter Collected 569 | 161 408 Remotely . | . . Salvage Created 919 | 159 760 Parts 51 | 13 38 Haulers Intercepted . | . . Recyclers Shooed 1 | . 1 Parts Field Recycled . | . . Retrieved Matter . | . . Parts Self-Destructed . | . . Prevented . | . . Kills | -11 -10 ------- Run | Yrd Mat Combat Hostiles Destroyed 15 | . 15 Guns 15 | . 15 Classes Destroyed 7 | 3 4 Worker 5 | 1 4 Tunneler 2 | 2 . Recycler 1 | 1 . Mechanic 1 | . 1 Operator 2 | . 2 Watcher 1 | . 1 Grunt 15 | . 15 Best Kill Streak 5 | 3 5 Combat Bots Only 4 | . 4 Max Kills in Single Turn 1 | 1 1 Gunslinging . | . . Exploded . | . . Melee . | . . Uniques/NPCs Destroyed . | . . Combat | -11 -10 -------- Run | Yrd Mat Hostile Shots Fired 125 | . 125 Missed 30 | . 30 Hits 95 | . 95 Projectile 95 | . 95 Critical Strikes 2 | . 2 Damage Taken 1317 | . 1317 Core 271 | . 271 Absorbed by Shields . | . . Core Remaining (%) 100 | 100 . Volleys Fired 87 | 10 77 Largest 2 | 2 2 Hottest 70 | 60 70 Shots Fired 172 | 20 152 Gun 172 | 20 152 Cannon . | . . Launcher . | . . Special . | . . Kinetic 109 | 10 99 Thermal 63 | 10 53 Explosive . | . . Electromagnetic . | . . Robot Hit Streak 15 | 6 15 Robot Miss Streak 4 | 2 4 Penetration Max . | . . Secondary Targets 2 | . 2 Max Gunslinging Chain 1 | . 1 Shots Hit Robots 109 | 11 98 Core Hits 56 | 5 51 Critical Kills . | . . Critical Parts Destroyed . | . . Critical Strikes 3 | . 3 Burn 3 | . 3 Melee Attacks . | . . Impact . | . . Slashing . | . . Piercing . | . . Sneak Attacks . | . . Combat Hostiles . | . . Follow-up Attacks . | . . Damage Inflicted 1268 | 100 1168 Guns 1246 | 100 1146 Cannons . | . . Explosions . | . . Melee . | . . Ramming 22 | . 22 Kinetic 772 | 37 735 Thermal 474 | 63 411 Explosive . | . . Electromagnetic . | . . Impact . | . . Slashing . | . . Piercing . | . . Highest Corruption . | . . Average Corruption . | . . Corruption Purged . | . . Corruption Blocked . | . . Overload Shots . | . . Overflow Damage . | . . Projectiles . | . . Explosions . | . . Melee . | . . Knockbacks . | . . Impact . | . . Kinetic . | . . Secondary . | . . Self-Inflicted Damage . | . . Shots . | . . Rammed 3 | . 3 Targets Rammed 6 | . 6 Kicked 3 | . 3 Crushed . | . . Highest Temperature 285 | . 285 Average Temperature 78 | . 78 Received Heat Transfer 696 | . 696 Siege Activations . | . . Martial Activations . | . . Shielding Activations . | . . Robots Disrupted . | . . Combat Hostiles . | . . Robots Corrupted . | . . Combat Hostiles . | . . Parts Fried . | . . Impact Corruptions . | . . Robots Melted . | . . Combat Hostiles . | . . Parts Melted 3 | . 3 Heat Transferred 1546 | 150 1396 Parts Sabotaged . | . . Parts Stolen . | . . Parts Stripped . | . . Power Chain Reactions . | . . Alert | -11 -10 ------- Run | Yrd Mat Maximum Alert Level . | . . Low Security (%) 100 | 100 100 Level 1 . | . . Level 2 . | . . Level 3 . | . . Level 4 . | . . Level 5 . | . . High Security . | . . Max Security . | . . Peak Influence 90 | 5 90 Initial 3 | . 3 Average 27 | 1 30 Influence Increases 447 | 20 427 Destroy 0b10 Robot/C 300 | . 300 Destroy 0b10 Robot/NC 60 | 20 40 Destroy Leader 72 | . 72 Disable Machine 15 | . 15 Influence Decreases 405 | 15 390 Entered New Map 2 | . 2 Time Decay 313 | 15 298 Lost Part 90 | . 90 Squads Dispatched 3 | . 3 Investigation 1 | . 1 Extermination . | . . Reinforcement 2 | . 2 Assault . | . . Garrison . | . . Intercept . | . . Searches Triggered . | . . Construction Impeded . | . . Haulers Reinforced . | . . Active Scanning Responses . | . . Cargo Convoy Interrupts . | . . Stealth | -11 -10 --------- Run | Yrd Mat Distress Signals 1 | . 1 Communications Jammed . | . . Distress Signals . | . . Times Spotted 33 | . 33 Peak Tracking Total 4 | . 4 Tactical Retreats . | . . Traps | -11 -10 ------- Run | Yrd Mat Traps Triggered 1 | . 1 Indirectly . | . . Trap Hack Attempts . | . . Triggered . | . . Disarmed . | . . Reprogrammed 1 | . 1 Reused . | . . Traps Extracted . | . . Installed . | . . Triggered . | . . Machines | -11 -10 ---------- Run | Yrd Mat Machines Disabled 1 | . 1 Max in Single Turn 1 | . 1 Machines Repaired . | . . Machines Dismantled . | . . Machines Sabotaged . | . . Overloaded Fab Kills . | . . Hacking | -11 -10 --------- Run | Yrd Mat Machines Accessed 5 | . 5 Terminals 5 | . 5 Fabricators . | . . Repair Stations . | . . Recycling Units . | . . Scanalyzers . | . . Garrison Access . | . . Total Hacks 10 | . 10 Successful 6 | . 6 Failed 4 | . 4 Catastrophic . | . . Database Lockouts . | . . Manual . | . . Terminals 10 | . 10 Fabricators . | . . Repair Stations . | . . Recycling Units . | . . Scanalyzers . | . . Garrison Access . | . . Terminal Hacks 6 | . 6 Prototype ID Bank 1 | . 1 Emergency Access Points 1 | . 1 Alert Level 1 | . 1 Locate Traps 1 | . 1 Reprogram Traps 1 | . 1 Zone Layout 1 | . 1 Fabricator Hacks . | . . Repair Station Hacks . | . . Recycling Unit Hacks . | . . Scanalyzer . | . . Garrison Access Hacks . | . . Unauthorized Hacks . | . . Terminals . | . . Fabricators . | . . Repair Stations . | . . Recycling Units . | . . Scanalyzers . | . . Garrison Access . | . . Data Cores Recovered . | . . Used . | . . Hacking Detections 3 | . 3 Full Trace Events . | . . Feedback Events . | . . Feedback Blocked . | . . Robot Schematics Acquired . | . . Robots Built . | . . Authchips . | . . Time . | . . Total Robot Build Rating . | . . Part Schematics Acquired . | . . Parts Built . | . . Authchips . | . . Time . | . . Total Part Build Rating . | . . Parts Repaired . | . . Time . | . . Parts Recycled . | . . Recycled Matter . | . . Retrieved Matter . | . . Retrieved Components . | . . Parts Scanalyzed . | . . Part Schematics Acquired . | . . Parts Damaged . | . . Bothacking | -11 -10 ------------ Run | Yrd Mat Used RIF Installer . | . . Robots Hacked . | . . Non-combat . | . . Combat . | . . Robot Hacks Applied . | . . Relay Couplers Released . | . . Fabnet Peak Effective % . | . . Robots Rewired . | . . Allies Hacked . | . . Hacks Repelled . | . . Allies | -11 -10 -------- Run | Yrd Mat Total Allies . | . . Largest Group . | . . Highest-Rated Group . | . . Highest-Rated Ally . | . . Total Orders . | . . Ally Attacks . | . . Total Damage . | . . Kills . | . . Allies Corrupted . | . . Allies Melted . | . . Intel | -11 -10 ------- Run | Yrd Mat Active Infowar (turns) 1021 | 32 989 Sensors 555 | . 555 Terrain 466 | 32 434 Robot Analysis Total . | . . Derelict Logs Recovered . | . . Drone Launches . | . . Drone Recoveries . | . . Exploration | -11 -10 ------------- Run | Yrd Mat Turns Passed 1157 | 116 1041 Spaces Moved 429 | 45 384 Core 2 | 2 . Treads 223 | 43 180 Legs 204 | . 204 Wheels . | . . Hover . | . . Flight . | . . Fastest Speed 50 | 50 120 Average Speed 188 | 155 192 Slowest Speed 260 | 160 260 Overloaded Moves . | . . Propulsion Burnouts . | . . Robots Hopped . | . . Potential Cave-ins . | . . Cave-ins Triggered . | . . Exploration Rate (%) 31 | 4 59 Regions Visited 1 Branch Regions . Pre-discovered Areas . | . . Known Exits Taken . | . . Unknown Exits Taken 1 | 1 . Scrap Searched . | . . Spaces Dug . | . . Terrain Destroyed . | . . Melee . | . . Projectile . | . . AOE . | . . Terrain Rammed . | . . Walls Destroyed . | . . Machines Disabled . | . . Actions | -11 -10 --------- Run | Yrd Mat Total 606 | 68 538 Wait 34 | . 34 Move 428 | 44 384 Hop . | . . Pick Up 27 | 7 20 Fast Attach 7 | 7 . Attach 10 | . 10 Detach . | . . Swap 1 | . 1 Drop 6 | . 6 Fire 87 | 10 77 Melee . | . . Ram . | . . Kick 3 | . 3 Crush 3 | . 3 Escape Stasis . | . . Rewire . | . . Trap . | . . Miscellaneous . | . . Route ------- -11/Scrapyard -10/Materials (discovered 3 exits: [*Mat] / [*Min] / [*Sub]) History --------- Turn | Location | Event 12 | -11/Scrapyard | Discovered new exit (range 14) 117 | -11/Scrapyard | Entered Materials 309 | -10/Materials | Build established: Mutant 517 | -10/Materials | Discovered new exit (range 13) 540 | -10/Materials | Core integrity fell below 50% 586 | -10/Materials | Lost 5 parts (1p1n1u2w) 788 | -10/Materials | Discovered new exit (range 15) 1068 | -10/Materials | Discovered new exit (range 14) 1117 | -10/Materials | Derelicts attacked the area 1139 | -10/Materials | Core integrity fell below 20% 1158 | -10/Materials | Destroyed by TI-MEX(R) with Subdweller Beam Cannon Last Messages --------------- Hvy. Ion Engine Imp. Assault Rifle 01068_ EXIT=FOUND 01070_ T-07 Excavator is excavating. 01097_ Acquired 1 matter. 01098_ G-34 Mercenary destroyed. 01099_ Acquired 1 matter. 01110_ Aluminum Leg melted. 01110_ G-47 Trooper destroyed. 01111_ Acquired 1 matter. 01115_ Acquired Aluminum Leg. 01117_ ALERT: Derelict incursion detected, dispatching patrols to target area. 01124_ Acquired Imp. Heat Sink. 01127_ Acquired Sml. Laser. 01138_ Ion Engine destroyed. 01140_ Aluminum Leg destroyed. 01143_ U-05 Engineer destroyed. 01143_ Acquired 20 matter. 01156_ Lgt. Assault Rifle destroyed. Map ----- +----------------------------------------------------+ | ?#######+#### """ ######### ####???????????? | | ?# # """ # # #??????????????? | | ?# %+ "" """ # " """ + #??????????????? | | ?# # "Y """ # T """ #^ #??????????????? | | ?# ###+#### "" # " """ # #??????????????? | | ?# ## ## # # #??????????????? | | ## ## #################### #??????????????? | | ## ## ! ##???????# ## #??????????????? | | # # #????????# """ ## #??????????????? | | # # #????????# """ ## ##?????????????? | | # # #????????# """ # ! #?????????????? | | # # #??#?????# #!% #?????????????? | | # # #????????# " " + =T% + T ??????????? | | ## ## #????????# "R" # # " #???????? | | # #######???#??#?# """ # # #???????? | | # #??????????????# #######?#####???????? | | + #????#??#########+#######???????????????????? | | # #??????## #!####################??????? | | # #??????#< !%=* ?????? | | # ########? *%= =%*= ?????? | | # # #?????## # =%R ?????? | | # # #??????######R;;;#;######????????????? | | # # """#????????# %R #?????????????????? | | ## + """#????????# [% T #?????????????????? | | ?# # """#????????# #?????????????????? | | ?# # #????????# @ #?????????????????? | | ## ########????????# """ """ #?????????????????? | | ?#####???????????????# """ """ #?????????????????? | | #????????????????????# """ """ #?????????????????? | | ?????????????????????# #?????????????????? | | ?????????????????????###########?????????????????? | | ?????????????????????????????????????????????????? | | ?????????????????????????????????????????????????? | | ?????????????????????????????????????????????????? | | | | | | | | | | | | | | | | | | | | | | | | | | | | | | | | | +----------------------------------------------------+ Best States ------------- Heat Dissipation 25 Energy Generation 10 Energy Capacity 250 Matter Stores 300 Matter Capacity 300 Sight Range 16 Robot Scan Range 14 Terrain Scan Range 16 Terrain Scan Density 10 Evasion (%) 55 Recoil Reduction 2 Item Schematics ----------------- None Robot Schematics ------------------ None Fabricated ------------ Nothing Repaired ---------- Nothing Alien Tech Used ----------------- None Achievements -------------- None Challenges ------------ None Game ------ Seed ReinforcedCloakCompactor Manual? 0 Play Time 00:09:13 Cumulative 46.6 hours Start 2025.10.04 @ 00:19:43 End 2025.10.04 @ 16:51:29 Sessions 1 Manual Loads 0 Difficulty Rogue Special Mode None Game No. 63 Rogue 63 Adventurer 0 Explorer 0 Win Type - Total 0 Types 0/0/0/0/0/0/0/0/0/0 Lore% 12 Gallery% 21 Achievement% 24 Wizard Run 0 Options --------- Layout 1 ASCII 0 Keyboard 0 Movement Mouse Keybinds 0 Fullscreen 1 Font 16/SmallcapsGlow Map View 25x20 Zoom Use 96% Tactical HUD 1 Map Filters NONE Filters NONE Steam SD RUN: 8407884d-600f-43f3-82a1-872419ae9ee9